Workbook

Sheet стандарт
F1: до 165 ПМ | G1: =H4*165 -> 316965 | H1: 0.03
F2: від 165 до 290 ПМ | G2: =H4*290 -> 557090 | H2: 0.04
F3: більше 290 ПМ | H3: 0.05
D4: КАЛЬКУЛЯТОР | H4: 1921
D5: Обрані Споживачем умови кредитування
B7: Кредит видається на: | D7: АВТО вживані
B8: Дата надання кредиту | D8: =TODAY() -> 2024-01-02
B9: Сума кредиту,грн.: | D9: 240000 | E9: гривень
B10: Забезпечення | D10: 300000 | E10: гривень | M10: Заповнюється Клієнтом
B11: Строк користування кредитом (в місяцях): | D11: 60
B12: Погашення основної суми кредиту: щомісяця
B13: Погашення процентів: щомісяця
A14: =ROUND(D9/D11,2) -> 4000 | B14: Номінальна процентна ставка: | D14: =VLOOKUP(D15,'Номінальна %ставка'!$A$2:$F$7,MATCH(стандарт!$D$11,'Номінальна %ставка'!$A$2:$F$2,0),0) -> 0.1599 | E14: річних | F14: =D14 -> 0.1599 | I14: =F14/12 -> 0.013325
B15: Авансовий внесок | D15: 0.2 | F15: =D10*D15 -> 60000 | G15: гривень
B16: Супутні витрати позичальника:
A17: =DATE(YEAR(B40),MONTH(B40)+1,DAY(B40)) -> 2024-02-02 | B17: комісія за надання кредиту (разова): | D17: 0.025 | E17: від основної суми кредиту/ Всього: | G17: =D17*D9 -> 6000 | I17: гривень
B18: обслуговування кредитної заборгованості: | D18: 0 | E18: на місяць від основної суми кредиту: | G18: =D18*D9 -> 0 | I18: гривень
B19: розрахунково-касове обслуговування: | G19: 0 | I19: гривень
B20: страхування НВ: | D20: 0 | E20: на рік від основної суми кредиту: | G20: =D20*D9 -> 0 | I20: гривень
B21: страхування КАСКО: | D21: 0.0799 | E21: на рік від залогової вартості: | G21: =D10*D21 -> 23970 | I21: гривень
B22: послуги нотаріуса: | G22: 0 | I22: гривень
B23: надання витягів/внесення запису(ів) до Державного реєстру обтяжень рухомого майна | E23: фіксована сума (одноразово) | G23: 0 | I23: гривень
B24: інші послуги третіх осіб | E24: фіксована сума (одноразово) | G24: 1500 | I24: гривень
B25: інші послуги банку | G25: 600 | I25: гривень
B26: Збір до Пенсійного фонду | D26: =IF(D10<G1,H1,IF(AND(D10>=G1,D10<=G2),H2,IF(D10>G2,H3))) -> 0.03 | E26: від суми кредиту (одноразово) | G26: =(D10/1.2)*D26 -> 7500 | I26: гривень
B27: оцінка майна: | E27: фіксована сума (одноразово) | G27: 0 | I27: гривень
B28: інша плата за послуги кредитного посередника | G28: 0 | I28: гривень
B29: ВСЬОГО | G29: =SUM(G17:G28) -> 39570 | I29: гривень
F31: =PMT(F14/12,E11,-D9) ->  | G31: =IPMT(F14/12,1,24,-D9) -> 3198
D32: Розрахунок загальної вартості споживчого кредиту та реальної процентної ставки
B34: Дата видачі кредиту/дата платежу | C34: Чиста сума кредиту/сума платежу за розрахунковий період, грн. | D34: Види платежів за кредитом | U34: Орієнтовна реальна річна процентна ставка, % | V34: пепеплата
D35: сума кредиту за договором | E35: проценти за користування кредитом | F35: платежі за супровідні послуги
F36: банку | K36: третіх осіб | T36: кредитного посередника(за наявності)
F37: обслуговування кредитної заборгованості | G37: РКО | H37: розрахунково-касове обслуговування | I37: комісія за надання кредиту | J37: інші послуги банку | K37: страхування НВ | L37: послугами нотаріусів | M37: страхування КАСКО | N37: оцінка майна | O37: надання витягів/внесення запису(ів) до Державного реєстру обтяжень рухомого майна | P37: інші послуги третіх осіб | R37: Збір до Пенсійного фонду | T37: інша плата за послуги кредитного посередника
B38: 1 | C38: 2 | D38: 3 | E38: 4 | F38: 5 | G38: 6 | I38: 7 | J38: 8 | K38: 9 | L38: 10 | M38: 11 | N38: 12 | O38: 13 | P38: 14 | R38: 15 | T38: 16 | U38: 17 | V38: 18
W39: остаток
A40: e | B40: =D8 -> 2024-01-02 | C40: =-(D40-SUM(F40:T40)) -> -200430 | D40: =D9 -> 240000 | E40: х | F40: =$G$18 -> 0 | G40: =G19 -> 0 | I40: =G17 -> 6000 | J40: =G25 -> 600 | K40: =IF(X40="страховка",$G$20,0) -> 0 | L40: =G22 -> 0 | M40: =IF(X40="страховка",$G$21,0) -> 23970 | N40: =G27 -> 0 | O40: =G23 -> 0 | P40: =G24 -> 1500 | R40: =G26 -> 7500 | T40: =G28 -> 0 | U40: х | V40: х | W40: 240000 | X40: =IF(MONTH($B$40)-MONTH(B40)=0,"страховка","нет") -> страховка
A41: e | B41: =DATE(YEAR(B40),MONTH(B40)+1,DAY(B40)) -> 2024-02-02 | C41: =SUM(D41:V41) -> 7304.6 | D41: =$A$14 -> 4000 | E41: =W40*$D$14/360*Y41 -> 3304.6 | F41: 0 | K41: =IF(X41="страховка",$G$20,0) -> 0 | M41: =IF(X41="страховка",$G$21,0) -> 0 | W41: =W40-D41 -> 236000 | X41: =IF(MONTH($B$40)-MONTH(B41)=0,"страховка","нет") -> нет | Y41: =B41-B40 -> 31
A42: e | B42: =DATE(YEAR(B41),MONTH(B41)+1,DAY(B41)) -> 2024-03-02 | C42: =SUM(D42:V42) -> 7039.876667 | D42: =$A$14 -> 4000 | E42: =W41*$D$14/360*Y42 -> 3039.876667 | F42: 0 | K42: 0 | M42: 0 | W42: =W41-D42 -> 232000 | X42: нет | Y42: =B42-B41 -> 29
A43: e | B43: 2024-04-02 | C43: 7194.446667 | D43: 4000 | E43: 3194.446667 | F43: 0 | K43: 0 | M43: 0 | W43: 228000 | X43: нет | Y43: 31
A44: e | B44: 2024-05-02 | C44: 7038.1 | D44: 4000 | E44: 3038.1 | F44: 0 | K44: 0 | M44: 0 | W44: 224000 | X44: нет | Y44: 30
A45: e | B45: 2024-06-02 | C45: 7084.293333 | D45: 4000 | E45: 3084.293333 | F45: 0 | K45: 0 | M45: 0 | W45: 220000 | X45: нет | Y45: 31
A46: e | B46: 2024-07-02 | C46: 6931.5 | D46: 4000 | E46: 2931.5 | F46: 0 | K46: 0 | M46: 0 | W46: 216000 | X46: нет | Y46: 30
A47: e | B47: 2024-08-02 | C47: 6974.14 | D47: 4000 | E47: 2974.14 | F47: 0 | K47: 0 | M47: 0 | W47: 212000 | X47: нет | Y47: 31
A48: e | B48: 2024-09-02 | C48: 6919.063333 | D48: 4000 | E48: 2919.063333 | F48: 0 | K48: 0 | M48: 0 | W48: 208000 | X48: нет | Y48: 31
A49: e | B49: 2024-10-02 | C49: 6771.6 | D49: 4000 | E49: 2771.6 | F49: 0 | K49: 0 | M49: 0 | W49: 204000 | X49: нет | Y49: 30
A50: e | B50: 2024-11-02 | C50: 6808.91 | D50: 4000 | E50: 2808.91 | F50: 0 | K50: 0 | M50: 0 | W50: 200000 | X50: нет | Y50: 31
A51: e | B51: 2024-12-02 | C51: 6665 | D51: 4000 | E51: 2665 | F51: 0 | K51: 0 | M51: 0 | W51: 196000 | X51: нет | Y51: 30
A52: e | B52: 2025-01-02 | C52: 30668.75667 | D52: 4000 | E52: 2698.756667 | F52: 0 | K52: 0 | M52: 23970 | W52: 192000 | X52: страховка | Y52: 31
A53: e | B53: 2025-02-02 | C53: 6643.68 | D53: 4000 | E53: 2643.68 | F53: 0 | K53: 0 | M53: 0 | W53: 188000 | X53: нет | Y53: 31
A54: e | B54: 2025-03-02 | C54: 6338.093333 | D54: 4000 | E54: 2338.093333 | F54: 0 | K54: 0 | M54: 0 | W54: 184000 | X54: нет | Y54: 28
A55: e | B55: 2025-04-02 | C55: 6533.526667 | D55: 4000 | E55: 2533.526667 | F55: 0 | K55: 0 | M55: 0 | W55: 180000 | X55: нет | Y55: 31
A56: e | B56: 2025-05-02 | C56: 6398.5 | D56: 4000 | E56: 2398.5 | F56: 0 | K56: 0 | M56: 0 | W56: 176000 | X56: нет | Y56: 30
A57: e | B57: 2025-06-02 | C57: 6423.373333 | D57: 4000 | E57: 2423.373333 | F57: 0 | K57: 0 | M57: 0 | W57: 172000 | X57: нет | Y57: 31
A58: e | B58: 2025-07-02 | C58: 6291.9 | D58: 4000 | E58: 2291.9 | F58: 0 | K58: 0 | M58: 0 | W58: 168000 | X58: нет | Y58: 30
A59: e | B59: 2025-08-02 | C59: 6313.22 | D59: 4000 | E59: 2313.22 | F59: 0 | K59: 0 | M59: 0 | W59: 164000 | X59: нет | Y59: 31
A60: e | B60: 2025-09-02 | C60: 6258.143333 | D60: 4000 | E60: 2258.143333 | F60: 0 | K60: 0 | M60: 0 | W60: 160000 | X60: нет | Y60: 31
A61: e | B61: 2025-10-02 | C61: 6132 | D61: 4000 | E61: 2132 | F61: 0 | K61: 0 | M61: 0 | W61: 156000 | X61: нет | Y61: 30
A62: e | B62: 2025-11-02 | C62: 6147.99 | D62: 4000 | E62: 2147.99 | F62: 0 | K62: 0 | M62: 0 | W62: 152000 | X62: нет | Y62: 31
A63: e | B63: 2025-12-02 | C63: 6025.4 | D63: 4000 | E63: 2025.4 | F63: 0 | K63: 0 | M63: 0 | W63: 148000 | X63: нет | Y63: 30
A64: e | B64: 2026-01-02 | C64: 30007.83667 | D64: 4000 | E64: 2037.836667 | F64: 0 | K64: 0 | M64: 23970 | W64: 144000 | X64: страховка | Y64: 31
A65: e | B65: 2026-02-02 | C65: 5982.76 | D65: 4000 | E65: 1982.76 | F65: 0 | K65: 0 | M65: 0 | W65: 140000 | X65: нет | Y65: 31
A66: e | B66: 2026-03-02 | C66: 5741.133333 | D66: 4000 | E66: 1741.133333 | F66: 0 | K66: 0 | M66: 0 | W66: 136000 | X66: нет | Y66: 28
A67: e | B67: 2026-04-02 | C67: 5872.606667 | D67: 4000 | E67: 1872.606667 | F67: 0 | K67: 0 | M67: 0 | W67: 132000 | X67: нет | Y67: 31
A68: e | B68: 2026-05-02 | C68: 5758.9 | D68: 4000 | E68: 1758.9 | F68: 0 | K68: 0 | M68: 0 | W68: 128000 | X68: нет | Y68: 30
A69: e | B69: 2026-06-02 | C69: 5762.453333 | D69: 4000 | E69: 1762.453333 | F69: 0 | K69: 0 | M69: 0 | W69: 124000 | X69: нет | Y69: 31
A70: e | B70: 2026-07-02 | C70: 5652.3 | D70: 4000 | E70: 1652.3 | F70: 0 | K70: 0 | M70: 0 | W70: 120000 | X70: нет | Y70: 30
A71: e | B71: 2026-08-02 | C71: 5652.3 | D71: 4000 | E71: 1652.3 | F71: 0 | K71: 0 | M71: 0 | W71: 116000 | X71: нет | Y71: 31
A72: e | B72: 2026-09-02 | C72: 5597.223333 | D72: 4000 | E72: 1597.223333 | F72: 0 | K72: 0 | M72: 0 | W72: 112000 | X72: нет | Y72: 31
A73: e | B73: 2026-10-02 | C73: 5492.4 | D73: 4000 | E73: 1492.4 | F73: 0 | K73: 0 | M73: 0 | W73: 108000 | X73: нет | Y73: 30
A74: e | B74: 2026-11-02 | C74: 5487.07 | D74: 4000 | E74: 1487.07 | F74: 0 | K74: 0 | M74: 0 | W74: 104000 | X74: нет | Y74: 31
A75: e | B75: 2026-12-02 | C75: 5385.8 | D75: 4000 | E75: 1385.8 | F75: 0 | K75: 0 | M75: 0 | W75: 100000 | X75: нет | Y75: 30
A76: e | B76: 2027-01-02 | C76: 29346.91667 | D76: 4000 | E76: 1376.916667 | F76: 0 | K76: 0 | M76: 23970 | W76: 96000 | X76: страховка | Y76: 31
A77: e | B77: 2027-02-02 | C77: 5321.84 | D77: 4000 | E77: 1321.84 | F77: 0 | K77: 0 | M77: 0 | W77: 92000 | X77: нет | Y77: 31
A78: e | B78: 2027-03-02 | C78: 5144.173333 | D78: 4000 | E78: 1144.173333 | F78: 0 | K78: 0 | M78: 0 | W78: 88000 | X78: нет | Y78: 28
A79: e | B79: 2027-04-02 | C79: 5211.686667 | D79: 4000 | E79: 1211.686667 | F79: 0 | K79: 0 | M79: 0 | W79: 84000 | X79: нет | Y79: 31
A80: e | B80: 2027-05-02 | C80: 5119.3 | D80: 4000 | E80: 1119.3 | F80: 0 | K80: 0 | M80: 0 | W80: 80000 | X80: нет | Y80: 30
A81: e | B81: 2027-06-02 | C81: 5101.533333 | D81: 4000 | E81: 1101.533333 | F81: 0 | K81: 0 | M81: 0 | W81: 76000 | X81: нет | Y81: 31
A82: e | B82: 2027-07-02 | C82: 5012.7 | D82: 4000 | E82: 1012.7 | F82: 0 | K82: 0 | M82: 0 | W82: 72000 | X82: нет | Y82: 30
A83: e | B83: 2027-08-02 | C83: 4991.38 | D83: 4000 | E83: 991.38 | F83: 0 | K83: 0 | M83: 0 | W83: 68000 | X83: нет | Y83: 31
A84: e | B84: 2027-09-02 | C84: 4936.303333 | D84: 4000 | E84: 936.3033333 | F84: 0 | K84: 0 | M84: 0 | W84: 64000 | X84: нет | Y84: 31
A85: e | B85: 2027-10-02 | C85: 4852.8 | D85: 4000 | E85: 852.8 | F85: 0 | K85: 0 | M85: 0 | W85: 60000 | X85: нет | Y85: 30
A86: e | B86: 2027-11-02 | C86: 4826.15 | D86: 4000 | E86: 826.15 | F86: 0 | K86: 0 | M86: 0 | W86: 56000 | X86: нет | Y86: 31
A87: e | B87: 2027-12-02 | C87: 4746.2 | D87: 4000 | E87: 746.2 | F87: 0 | K87: 0 | M87: 0 | W87: 52000 | X87: нет | Y87: 30
A88: e | B88: 2028-01-02 | C88: 28685.99667 | D88: 4000 | E88: 715.9966667 | F88: 0 | K88: 0 | M88: 23970 | W88: 48000 | X88: страховка | Y88: 31
A89: e | B89: 2028-02-02 | C89: 4660.92 | D89: 4000 | E89: 660.92 | F89: 0 | K89: 0 | M89: 0 | W89: 44000 | X89: нет | Y89: 31
A90: e | B90: 2028-03-02 | C90: 4566.756667 | D90: 4000 | E90: 566.7566667 | F90: 0 | K90: 0 | M90: 0 | W90: 40000 | X90: нет | Y90: 29
A91: e | B91: 2028-04-02 | C91: 4550.766667 | D91: 4000 | E91: 550.7666667 | F91: 0 | K91: 0 | M91: 0 | W91: 36000 | X91: нет | Y91: 31
A92: e | B92: 2028-05-02 | C92: 4479.7 | D92: 4000 | E92: 479.7 | F92: 0 | K92: 0 | M92: 0 | W92: 32000 | X92: нет | Y92: 30
A93: e | B93: 2028-06-02 | C93: 4440.613333 | D93: 4000 | E93: 440.6133333 | F93: 0 | K93: 0 | M93: 0 | W93: 28000 | X93: нет | Y93: 31
A94: e | B94: 2028-07-02 | C94: 4373.1 | D94: 4000 | E94: 373.1 | F94: 0 | K94: 0 | M94: 0 | W94: 24000 | X94: нет | Y94: 30
A95: e | B95: 2028-08-02 | C95: 4330.46 | D95: 4000 | E95: 330.46 | F95: 0 | K95: 0 | M95: 0 | W95: 20000 | X95: нет | Y95: 31
A96: e | B96: 2028-09-02 | C96: 4275.383333 | D96: 4000 | E96: 275.3833333 | F96: 0 | K96: 0 | M96: 0 | W96: 16000 | X96: нет | Y96: 31
A97: e | B97: 2028-10-02 | C97: 4213.2 | D97: 4000 | E97: 213.2 | F97: 0 | K97: 0 | M97: 0 | W97: 12000 | X97: нет | Y97: 30
A98: e | B98: 2028-11-02 | C98: 4165.23 | D98: 4000 | E98: 165.23 | F98: 0 | K98: 0 | M98: 0 | W98: 8000 | X98: нет | Y98: 31
A99: e | B99: 2028-12-02 | C99: 4106.6 | D99: 4000 | E99: 106.6 | F99: 0 | K99: 0 | M99: 0 | W99: 4000 | X99: нет | Y99: 30
A100: e | B100: 2029-01-02 | C100: 4055.076667 | D100: 4000 | E100: 55.07666667 | F100: 0 | W100: 0 | Y100: 31
B101: Усього | C101: 434824.3433 | D101: 240000 | E101: 98944.34333 | F101: 0 | G101: 0 | H101: 0 | I101: 6000 | J101: 600 | K101: 0 | L101: 0 | M101: 119850 | N101: 0 | O101: 0 | P101: 1500 | Q101: 0 | R101: 7500 | S101: 0 | T101: 0 | U101: =XIRR(C40:C100,B40:B100) -> 0.4714777529 | V101: 234394.3433
B103: Загальні витрати за кредитом( проценти за користування кредитом, комісії та інші обовязкові платежі за супровідні послуги кредитодавця, кредитного посередника (за наявності) та третіх осіб, повязані з отриманням, обслуговуванням та поверненням кредиту), грн з них: | J103: =V101 -> 234394.3433
B104: - Платежі за супровідні послуги кредитодавця, повязані з отриманням, обслуговуванням та поверненням кредиту), грн | J104: =E101+F101+G101+I101+J101 -> 105544.3433
B105: - Платежі за супровідні послуги третіх осіб, повязані з отриманням, обслуговуванням та поверненням кредиту), грн | J105: =K101+L101+M101+N101+O101+P101+R101+T101 -> 128850
B106: Орієнтовна загальна вартість кредиту для споживача за весь строк користування кредитом ( у т.ч. тіло кредиту, відсотки, комісії та інші платежі), грн. | J106: =J103+D9 -> 474394.3433
B107: Орієнтовна реальна річна процентна ставка, % річних | J107: =U101 -> 0.4714777529
B108: Застереження: Розрахунок загальної вартості Кредиту і реальної процентної ставки носить інформативний характер для Позичальника і визначено станом на дату укладання Кредитного договору. При здійсненні розрахунку загальної вартості Кредиту і реальної процентної ставки Кредитор враховував вартість супутніх послуг третіх осіб, послуги кредитного посередник ( за наявності). В розрахунок загальної вартості Кредиту і реальної процентної ставки не включались умовні платежі Позичальника по Договору (пені, штрафи, які встановлюються згідно з Договором).
B109: Наведені обчислення реальної річної процентної ставки та орієнтовної загальної вартості кредиту для споживача є репрезентативними та базуються на обраних споживачем умовах кредитування, викладених вище, і на припущенні, що договір про споживчий кредит залишатиметься дійсним протягом погодженого строку, а кредитодавець і споживач виконають свої обов’язки на умовах та у строки, визначені в договорі.Реальна річна процентна ставка обчислена на основі припущення, що процентна ставка та інші платежі за послуги кредитодавця залишатимуться незмінними та застосовуватимуться протягом строку дії договору про споживчий кредит. Застереження: використання інших способів надання кредиту та/або зміна інших вищезазначених умов кредитування можуть мати наслідком застосування іншої реальної річної процентної ставки та орієнтовної загальної вартості кредиту для споживача. Орієнтовна реальна річна процентна ставка обчислена з використанням фінансової функції ЧИСТВНДОХ програмного продукту Microsoft Excel.
B110: Позичальник не сплачує Кредитору комісійних винагород за розрахунково-касове обслуговування, що пов‘язані з погашенням Кредиту та процентів за ним Позичальником у готівковій чи безготівковій формі через установи Кредитора. У випадку погашення Позичальником Кредиту та процентів за ним не через установи Кредитора Позичальник буде сплачувати послуги інших банків згідно з тарифами, які діятимуть в таких банках на момент здійснення розрахунково-касового обслуговування Позичальника.

Sheet ануітет
F1: до 165 ПМ | G1: =H4*165 -> 499620 | H1: 0.03
F2: від 165 до 290 ПМ | G2: =H4*290 -> 878120 | H2: 0.04
F3: більше 290 ПМ | H3: 0.05
D4: КАЛЬКУЛЯТОР | H4: 3028
D5: Обрані Споживачем умови кредитування
B7: Кредит видається на:
B8: Дата надання кредиту | D8: =TODAY() -> 2024-01-02 | L8: Заповнюється Клієнтом
B9: Сума кредиту,грн.: | D9: 240000 | E9: гривень
B10: Забезпечення | D10: 500000 | E10: гривень | F10: =D10/1.2 -> 416666.6667
B11: Строк користування кредитом (в місяцях): | D11: 60
B12: Погашення основної суми кредиту: щомісяця
B13: Погашення процентів: щомісяця
A14: =ROUND(D9/D11,2) -> 4000 | B14: Номінальна процентна ставка: | D14: =VLOOKUP(D15,'Номінальна %ставка'!$A$2:$F$7,MATCH(D11,'Номінальна %ставка'!$A$2:$F$2,0),0) -> 0.1599 | E14: річних | F14: =D14 -> 0.1599 | I14: =F14/12 -> 0.013325
B15: Авансовий внесок | D15: 0.2 | F15: =D10*D15 -> 100000 | G15: гривень
B16: Супутні витрати позичальника:
A17: =DATE(YEAR(B40),MONTH(B40)+1,DAY(B40)) -> 2024-02-02 | B17: комісія за надання кредиту (разова): | D17: 0 | E17: від основної суми кредиту. Всього: | G17: =D17*D9 -> 0 | I17: гривень
B18: обслуговування кредитної заборгованості: | D18: 0 | E18: на місяць від основної суми кредиту: | G18: =D18*D9 -> 0 | I18: гривень
B19: розрахунково-касове обслуговування: | G19: 0 | I19: гривень
B20: страхування НВ: | D20: 0 | E20: на рік від основної суми кредиту: | G20: =D20*D9 -> 0 | I20: гривень
B21: страхування КАСКО: | D21: 0.0799 | E21: на рік від залогової вартості: | G21: =D10*D21 -> 39950 | I21: гривень
B22: послуги нотаріуса: | G22: 0 | I22: гривень
B23: надання витягів/внесення запису(ів) до Державного реєстру обтяжень рухомого майна | E23: фіксована сума (одноразово) | G23: 0 | I23: гривень
B24: інші послуги третіх осіб | G24: 1500 | I24: гривень
B25: інші послуги банку | G25: 600 | I25: гривень
B26: Збір до Пенсійного фонду | D26: =IF(F10<G1,H1,IF(AND(F10>=G1,F10<=G2),H2,IF(F10>G2,H3))) -> 0.03 | E26: від суми кредиту (одноразово) | G26: =(D10/1.2)*D26 -> 12500 | I26: гривень
B27: оцінка майна: | E27: фіксована сума (одноразово) | G27: 0 | I27: гривень
B28: інша плата за послуги кредитного посередника | G28: 0 | I28: гривень
B29: ВСЬОГО | G29: =SUM(G17:G28) -> 54550 | I29: гривень
F31: =PMT(F14/12,E11,-D9) ->  | G31: =IPMT(F14/12,1,24,-D9) -> 3198
D32: Розрахунок загальної вартості споживчого кредиту та реальної процентної ставки
B34: Дата видачі кредиту/дата платежу | C34: Чиста сума кредиту/сума платежу за розрахунковий період, грн. | D34: Види платежів за кредитом | U34: Реальна процентна ставка, % | V34: Абсолютне значення подорожчання кредиту, грн.
D35: сума кредиту за договором | E35: проценти за користування кредитом | F35: платежі за супровідні послуги
F36: банку | K36: третіх осіб | T36: кредитного посередника(за наявності)
F37: обслуговування кредитної заборгованості | G37: РКО | I37: комісія за надання кредиту | J37: інші послуги банку | K37: страхуванням НВ | L37: послугами нотаріусів | M37: страхування КАСКО: | N37: оцінка майна | O37: надання витягів/внесення запису(ів) до Державного реєстру обтяжень рухомого майна | P37: інші послуги третіх осіб | R37: Збір до Пенсійного фонду | T37: інша плата за послуги кредитного посередника
B38: 1 | C38: 2 | D38: 3 | E38: 4 | F38: 5 | G38: 6 | I38: 7 | J38: 8 | K38: 9 | L38: 10 | M38: 11 | N38: 12 | O38: 13 | P38: 14 | R38: 15 | T38: 16 | U38: 17 | V38: 18
W39: остаток | Z39: ан платеж
A40: e | B40: =D8 -> 2024-01-02 | C40: =-(D40-SUM(F40:T40)) -> -185450 | D40: =D9 -> 240000 | E40: х | F40: =$G$18 -> 0 | G40: =G19 -> 0 | I40: =G17 -> 0 | J40: =G25 -> 600 | K40: =IF(X40="страховка",$G$20,0) -> 0 | L40: =G22 -> 0 | M40: =IF(X40="страховка",$G$21,0) -> 39950 | N40: =G27 -> 0 | O40: =G23 -> 0 | P40: =G24 -> 1500 | R40: =G26 -> 12500 | T40: =G28 -> 0 | U40: х | V40: х | W40: 240000 | X40: =IF(MONTH($B$40)-MONTH(B40)=0,"страховка","нет") -> страховка | AB40: =(D9*D14/12)/(1-(1/(1+D14/12)^D11)) -> 5835.058587
A41: e | B41: =DATE(YEAR(B40),MONTH(B40)+1,DAY(B40)) -> 2024-02-02 | C41: =SUM(D41:V41) -> 5835.058587 | D41: =Z41-E41 -> 2637.058587 | E41: =W40*$D$14/12 -> 3198 | F41: =$G$18 -> 0 | K41: =IF(X41="страховка",$G$20,0) -> 0 | M41: =IF(X41="страховка",$G$21,0) -> 0 | W41: =W40-D41 -> 237362.9414 | X41: =IF(MONTH($B$40)-MONTH(B41)=0,"страховка","нет") -> нет | Y41: =B41-B40 -> 31 | Z41: =PMT($D$14/12,$D$11,-$D$9) -> 5835.058587
A42: e | B42: =DATE(YEAR(B41),MONTH(B41)+1,DAY(B41)) -> 2024-03-02 | C42: =SUM(D42:V42) -> 5835.058587 | D42: =Z42-E42 -> 2672.197393 | E42: =W41*$D$14/12 -> 3162.861194 | F42: 0 | K42: 0 | M42: 0 | W42: =W41-D42 -> 234690.744 | X42: нет | Y42: =B42-B41 -> 29 | Z42: =PMT($D$14/12,$D$11,-$D$9) -> 5835.058587
A43: e | B43: 2024-04-02 | C43: 5835.058587 | D43: 2707.804423 | E43: 3127.254164 | F43: 0 | K43: 0 | M43: 0 | W43: 231982.9396 | X43: нет | Y43: 31 | Z43: 5835.058587
A44: e | B44: 2024-05-02 | C44: 5835.058587 | D44: 2743.885917 | E44: 3091.17267 | F44: 0 | K44: 0 | M44: 0 | W44: 229239.0537 | X44: нет | Y44: 30 | Z44: 5835.058587
A45: e | B45: 2024-06-02 | C45: 5835.058587 | D45: 2780.448197 | E45: 3054.61039 | F45: 0 | K45: 0 | M45: 0 | W45: 226458.6055 | X45: нет | Y45: 31 | Z45: 5835.058587
A46: e | B46: 2024-07-02 | C46: 5835.058587 | D46: 2817.497669 | E46: 3017.560918 | F46: 0 | K46: 0 | M46: 0 | W46: 223641.1078 | X46: нет | Y46: 30 | Z46: 5835.058587
A47: e | B47: 2024-08-02 | C47: 5835.058587 | D47: 2855.040825 | E47: 2980.017762 | F47: 0 | K47: 0 | M47: 0 | W47: 220786.067 | X47: нет | Y47: 31 | Z47: 5835.058587
A48: e | B48: 2024-09-02 | C48: 5835.058587 | D48: 2893.084244 | E48: 2941.974343 | F48: 0 | K48: 0 | M48: 0 | W48: 217892.9827 | X48: нет | Y48: 31 | Z48: 5835.058587
A49: e | B49: 2024-10-02 | C49: 5835.058587 | D49: 2931.634592 | E49: 2903.423995 | F49: 0 | K49: 0 | M49: 0 | W49: 214961.3482 | X49: нет | Y49: 30 | Z49: 5835.058587
A50: e | B50: 2024-11-02 | C50: 5835.058587 | D50: 2970.698623 | E50: 2864.359964 | F50: 0 | K50: 0 | M50: 0 | W50: 211990.6495 | X50: нет | Y50: 31 | Z50: 5835.058587
A51: e | B51: 2024-12-02 | C51: 5835.058587 | D51: 3010.283182 | E51: 2824.775405 | F51: 0 | K51: 0 | M51: 0 | W51: 208980.3664 | X51: нет | Y51: 30 | Z51: 5835.058587
A52: e | B52: 2025-01-02 | C52: 45785.05859 | D52: 3050.395205 | E52: 2784.663382 | F52: 0 | K52: 0 | M52: 39950 | W52: 205929.9711 | X52: страховка | Y52: 31 | Z52: 5835.058587
A53: e | B53: 2025-02-02 | C53: 5835.058587 | D53: 3091.041721 | E53: 2744.016866 | F53: 0 | K53: 0 | M53: 0 | W53: 202838.9294 | X53: нет | Y53: 31 | Z53: 5835.058587
A54: e | B54: 2025-03-02 | C54: 5835.058587 | D54: 3132.229852 | E54: 2702.828735 | F54: 0 | K54: 0 | M54: 0 | W54: 199706.6996 | X54: нет | Y54: 28 | Z54: 5835.058587
A55: e | B55: 2025-04-02 | C55: 5835.058587 | D55: 3173.966815 | E55: 2661.091772 | F55: 0 | K55: 0 | M55: 0 | W55: 196532.7328 | X55: нет | Y55: 31 | Z55: 5835.058587
A56: e | B56: 2025-05-02 | C56: 5835.058587 | D56: 3216.259923 | E56: 2618.798664 | F56: 0 | K56: 0 | M56: 0 | W56: 193316.4728 | X56: нет | Y56: 30 | Z56: 5835.058587
A57: e | B57: 2025-06-02 | C57: 5835.058587 | D57: 3259.116586 | E57: 2575.942001 | F57: 0 | K57: 0 | M57: 0 | W57: 190057.3562 | X57: нет | Y57: 31 | Z57: 5835.058587
A58: e | B58: 2025-07-02 | C58: 5835.058587 | D58: 3302.544315 | E58: 2532.514272 | F58: 0 | K58: 0 | M58: 0 | W58: 186754.8119 | X58: нет | Y58: 30 | Z58: 5835.058587
A59: e | B59: 2025-08-02 | C59: 5835.058587 | D59: 3346.550718 | E59: 2488.507869 | F59: 0 | K59: 0 | M59: 0 | W59: 183408.2612 | X59: нет | Y59: 31 | Z59: 5835.058587
A60: e | B60: 2025-09-02 | C60: 5835.058587 | D60: 3391.143506 | E60: 2443.915081 | F60: 0 | K60: 0 | M60: 0 | W60: 180017.1177 | X60: нет | Y60: 31 | Z60: 5835.058587
A61: e | B61: 2025-10-02 | C61: 5835.058587 | D61: 3436.330493 | E61: 2398.728093 | F61: 0 | K61: 0 | M61: 0 | W61: 176580.7872 | X61: нет | Y61: 30 | Z61: 5835.058587
A62: e | B62: 2025-11-02 | C62: 5835.058587 | D62: 3482.119597 | E62: 2352.93899 | F62: 0 | K62: 0 | M62: 0 | W62: 173098.6676 | X62: нет | Y62: 31 | Z62: 5835.058587
A63: e | B63: 2025-12-02 | C63: 5835.058587 | D63: 3528.518841 | E63: 2306.539746 | F63: 0 | K63: 0 | M63: 0 | W63: 169570.1488 | X63: нет | Y63: 30 | Z63: 5835.058587
A64: e | B64: 2026-01-02 | C64: 45785.05859 | D64: 3575.536354 | E64: 2259.522232 | F64: 0 | K64: 0 | M64: 39950 | W64: 165994.6124 | X64: страховка | Y64: 31 | Z64: 5835.058587
A65: e | B65: 2026-02-02 | C65: 5835.058587 | D65: 3623.180376 | E65: 2211.878211 | F65: 0 | K65: 0 | M65: 0 | W65: 162371.432 | X65: нет | Y65: 31 | Z65: 5835.058587
A66: e | B66: 2026-03-02 | C66: 5835.058587 | D66: 3671.459255 | E66: 2163.599332 | F66: 0 | K66: 0 | M66: 0 | W66: 158699.9728 | X66: нет | Y66: 28 | Z66: 5835.058587
A67: e | B67: 2026-04-02 | C67: 5835.058587 | D67: 3720.381449 | E67: 2114.677137 | F67: 0 | K67: 0 | M67: 0 | W67: 154979.5913 | X67: нет | Y67: 31 | Z67: 5835.058587
A68: e | B68: 2026-05-02 | C68: 5835.058587 | D68: 3769.955532 | E68: 2065.103055 | F68: 0 | K68: 0 | M68: 0 | W68: 151209.6358 | X68: нет | Y68: 30 | Z68: 5835.058587
A69: e | B69: 2026-06-02 | C69: 5835.058587 | D69: 3820.19019 | E69: 2014.868397 | F69: 0 | K69: 0 | M69: 0 | W69: 147389.4456 | X69: нет | Y69: 31 | Z69: 5835.058587
A70: e | B70: 2026-07-02 | C70: 5835.058587 | D70: 3871.094224 | E70: 1963.964363 | F70: 0 | K70: 0 | M70: 0 | W70: 143518.3514 | X70: нет | Y70: 30 | Z70: 5835.058587
A71: e | B71: 2026-08-02 | C71: 5835.058587 | D71: 3922.676554 | E71: 1912.382032 | F71: 0 | K71: 0 | M71: 0 | W71: 139595.6748 | X71: нет | Y71: 31 | Z71: 5835.058587
A72: e | B72: 2026-09-02 | C72: 5835.058587 | D72: 3974.94622 | E72: 1860.112367 | F72: 0 | K72: 0 | M72: 0 | W72: 135620.7286 | X72: нет | Y72: 31 | Z72: 5835.058587
A73: e | B73: 2026-10-02 | C73: 5835.058587 | D73: 4027.912378 | E73: 1807.146209 | F73: 0 | K73: 0 | M73: 0 | W73: 131592.8162 | X73: нет | Y73: 30 | Z73: 5835.058587
A74: e | B74: 2026-11-02 | C74: 5835.058587 | D74: 4081.58431 | E74: 1753.474276 | F74: 0 | K74: 0 | M74: 0 | W74: 127511.2319 | X74: нет | Y74: 31 | Z74: 5835.058587
A75: e | B75: 2026-12-02 | C75: 5835.058587 | D75: 4135.971421 | E75: 1699.087166 | F75: 0 | K75: 0 | M75: 0 | W75: 123375.2605 | X75: нет | Y75: 30 | Z75: 5835.058587
A76: e | B76: 2027-01-02 | C76: 45785.05859 | D76: 4191.083241 | E76: 1643.975346 | F76: 0 | K76: 0 | M76: 39950 | W76: 119184.1773 | X76: страховка | Y76: 31 | Z76: 5835.058587
A77: e | B77: 2027-02-02 | C77: 5835.058587 | D77: 4246.929425 | E77: 1588.129162 | F77: 0 | K77: 0 | M77: 0 | W77: 114937.2478 | X77: нет | Y77: 31 | Z77: 5835.058587
A78: e | B78: 2027-03-02 | C78: 5835.058587 | D78: 4303.519759 | E78: 1531.538828 | F78: 0 | K78: 0 | M78: 0 | W78: 110633.7281 | X78: нет | Y78: 28 | Z78: 5835.058587
A79: e | B79: 2027-04-02 | C79: 5835.058587 | D79: 4360.86416 | E79: 1474.194427 | F79: 0 | K79: 0 | M79: 0 | W79: 106272.8639 | X79: нет | Y79: 31 | Z79: 5835.058587
A80: e | B80: 2027-05-02 | C80: 5835.058587 | D80: 4418.972675 | E80: 1416.085912 | F80: 0 | K80: 0 | M80: 0 | W80: 101853.8913 | X80: нет | Y80: 30 | Z80: 5835.058587
A81: e | B81: 2027-06-02 | C81: 5835.058587 | D81: 4477.855486 | E81: 1357.203101 | F81: 0 | K81: 0 | M81: 0 | W81: 97376.03577 | X81: нет | Y81: 31 | Z81: 5835.058587
A82: e | B82: 2027-07-02 | C82: 5835.058587 | D82: 4537.52291 | E82: 1297.535677 | F82: 0 | K82: 0 | M82: 0 | W82: 92838.51286 | X82: нет | Y82: 30 | Z82: 5835.058587
A83: e | B83: 2027-08-02 | C83: 5835.058587 | D83: 4597.985403 | E83: 1237.073184 | F83: 0 | K83: 0 | M83: 0 | W83: 88240.52745 | X83: нет | Y83: 31 | Z83: 5835.058587
A84: e | B84: 2027-09-02 | C84: 5835.058587 | D84: 4659.253559 | E84: 1175.805028 | F84: 0 | K84: 0 | M84: 0 | W84: 83581.27389 | X84: нет | Y84: 31 | Z84: 5835.058587
A85: e | B85: 2027-10-02 | C85: 5835.058587 | D85: 4721.338112 | E85: 1113.720475 | F85: 0 | K85: 0 | M85: 0 | W85: 78859.93578 | X85: нет | Y85: 30 | Z85: 5835.058587
A86: e | B86: 2027-11-02 | C86: 5835.058587 | D86: 4784.249943 | E86: 1050.808644 | F86: 0 | K86: 0 | M86: 0 | W86: 74075.68584 | X86: нет | Y86: 31 | Z86: 5835.058587
A87: e | B87: 2027-12-02 | C87: 5835.058587 | D87: 4848.000073 | E87: 987.0585138 | F87: 0 | K87: 0 | M87: 0 | W87: 69227.68577 | X87: нет | Y87: 30 | Z87: 5835.058587
A88: e | B88: 2028-01-02 | C88: 45785.05859 | D88: 4912.599674 | E88: 922.4589128 | F88: 0 | K88: 0 | M88: 39950 | W88: 64315.08609 | X88: страховка | Y88: 31 | Z88: 5835.058587
A89: e | B89: 2028-02-02 | C89: 5835.058587 | D89: 4978.060065 | E89: 856.9985222 | F89: 0 | K89: 0 | M89: 0 | W89: 59337.02603 | X89: нет | Y89: 31 | Z89: 5835.058587
A90: e | B90: 2028-03-02 | C90: 5835.058587 | D90: 5044.392715 | E90: 790.6658718 | F90: 0 | K90: 0 | M90: 0 | W90: 54292.63331 | X90: нет | Y90: 29 | Z90: 5835.058587
A91: e | B91: 2028-04-02 | C91: 5835.058587 | D91: 5111.609248 | E91: 723.4493389 | F91: 0 | K91: 0 | M91: 0 | W91: 49181.02407 | X91: нет | Y91: 31 | Z91: 5835.058587
A92: e | B92: 2028-05-02 | C92: 5835.058587 | D92: 5179.721441 | E92: 655.3371457 | F92: 0 | K92: 0 | M92: 0 | W92: 44001.30262 | X92: нет | Y92: 30 | Z92: 5835.058587
A93: e | B93: 2028-06-02 | C93: 5835.058587 | D93: 5248.741229 | E93: 586.3173575 | F93: 0 | K93: 0 | M93: 0 | W93: 38752.56139 | X93: нет | Y93: 31 | Z93: 5835.058587
A94: e | B94: 2028-07-02 | C94: 5835.058587 | D94: 5318.680706 | E94: 516.3778806 | F94: 0 | K94: 0 | M94: 0 | W94: 33433.88069 | X94: нет | Y94: 30 | Z94: 5835.058587
A95: e | B95: 2028-08-02 | C95: 5835.058587 | D95: 5389.552127 | E95: 445.5064602 | F95: 0 | K95: 0 | M95: 0 | W95: 28044.32856 | X95: нет | Y95: 31 | Z95: 5835.058587
A96: e | B96: 2028-09-02 | C96: 5835.058587 | D96: 5461.367909 | E96: 373.6906781 | F96: 0 | K96: 0 | M96: 0 | W96: 22582.96065 | X96: нет | Y96: 31 | Z96: 5835.058587
A97: e | B97: 2028-10-02 | C97: 5835.058587 | D97: 5534.140636 | E97: 300.9179507 | F97: 0 | K97: 0 | M97: 0 | W97: 17048.82002 | X97: нет | Y97: 30 | Z97: 5835.058587
A98: e | B98: 2028-11-02 | C98: 5835.058587 | D98: 5607.88306 | E98: 227.1755267 | F98: 0 | K98: 0 | M98: 0 | W98: 11440.93696 | X98: нет | Y98: 31 | Z98: 5835.058587
A99: e | B99: 2028-12-02 | C99: 5835.058587 | D99: 5682.608102 | E99: 152.4504849 | F99: 0 | K99: 0 | M99: 0 | W99: 5758.328855 | X99: нет | Y99: 30 | Z99: 5835.058587
A100: e | B100: 2029-01-02 | C100: 5835.058587 | D100: 5758.328855 | E100: 76.72973199 | F100: 0 | W100: -7.548806025e-11 | Y100: 31 | Z100: 5835.058587
B101: Усього | C101: 445983.5152 | D101: 240000 | E101: 110103.5152 | F101: 0 | G101: 0 | H101: 0 | I101: 0 | J101: 600 | K101: 0 | L101: 0 | M101: 119850 | N101: 0 | O101: 0 | P101: 1500 | Q101: 0 | R101: 7500 | S101: 0 | T101: 0 | U101: =XIRR(C40:C100,B40:B100) -> 0.6150184572 | V101: 239553.5152
B103: Загальні витрати за кредитом( проценти за користування кредитом, комісії та інші обовязкові платежі за супровідні послуги кредитодавця, кредитного посередника (за наявності) та третіх осіб, повязані з отриманням, обслуговуванням та поверненням кредиту), грн з них: | J103: =V101 -> 239553.5152
B104: - Платежі за супровідні послуги кредитодавця, повязані з отриманням, обслуговуванням та поверненням кредиту), грн | J104: =E101+F101+G101+I101+J101 -> 110703.5152
B105: - Платежі за супровідні послуги третіх осіб, повязані з отриманням, обслуговуванням та поверненням кредиту), грн | J105: =K101+L101+M101+N101+O101+P101+R101+T101 -> 128850
B106: Орієнтовна загальна вартість кредиту для споживача за весь строк користування кредитом ( у т.ч. тіло кредиту, відсотки, комісії та інші платежі), грн. | J106: =J103+D9 -> 479553.5152
B107: Орієнтовна реальна річна процентна ставка, % річних | J107: =U101 -> 0.6150184572
B108: Застереження: Розрахунок загальної вартості Кредиту і реальної процентної ставки носить інформативний характер для Позичальника і визначено станом на дату укладання Кредитного договору. При здійсненні розрахунку загальної вартості Кредиту і реальної процентної ставки Кредитор враховував вартість супутніх послуг третіх осіб, послуги кредитного посередник ( за наявності). В розрахунок загальної вартості Кредиту і реальної процентної ставки не включались умовні платежі Позичальника по Договору (пені, штрафи, які встановлюються згідно з Договором).
B109: Наведені обчислення реальної річної процентної ставки та орієнтовної загальної вартості кредиту для споживача є репрезентативними та базуються на обраних споживачем умовах кредитування, викладених вище, і на припущенні, що договір про споживчий кредит залишатиметься дійсним протягом погодженого строку, а кредитодавець і споживач виконають свої обов’язки на умовах та у строки, визначені в договорі.Реальна річна процентна ставка обчислена на основі припущення, що процентна ставка та інші платежі за послуги кредитодавця залишатимуться незмінними та застосовуватимуться протягом строку дії договору про споживчий кредит. Застереження: використання інших способів надання кредиту та/або зміна інших вищезазначених умов кредитування можуть мати наслідком застосування іншої реальної річної процентної ставки та орієнтовної загальної вартості кредиту для споживача. Орієнтовна реальна річна процентна ставка обчислена з використанням фінансової функції ЧИСТВНДОХ програмного продукту Microsoft Excel.
B110: Позичальник не сплачує Кредитору комісійних винагород за розрахунково-касове обслуговування, що пов‘язані з погашенням Кредиту та процентів за ним Позичальником у готівковій чи безготівковій формі через установи Кредитора. У випадку погашення Позичальником Кредиту та процентів за ним не через установи Кредитора Позичальник буде сплачувати послуги інших банків згідно з тарифами, які діятимуть в таких банках на момент здійснення розрахунково-касового обслуговування Позичальника.

Sheet Номінальна %ставка (hidden)
B1: Строк кредиту, міс.
A2: Авансовий внесок | B2: 12 | C2: 24 | D2: 36 | E2: 48 | F2: 60
A3: 0.2 | B3: 0.0599 | C3: 0.1199 | D3: 0.1399 | E3: 0.1499 | F3: 0.1599
A4: 0.3 | B4: 0.0399 | C4: 0.0999 | D4: 0.1299 | E4: 0.1399 | F4: 0.1499
A5: 0.4 | B5: 0.0199 | C5: 0.0799 | D5: 0.1099 | E5: 0.1199 | F5: 0.1299
A6: 0.5 | B6: 0.0001 | C6: 0.0499 | D6: 0.0899 | E6: 0.0999 | F6: 0.1099
A7: 0.6 | B7: 0.0001 | C7: 0.0299 | D7: 0.0599 | E7: 0.0799 | F7: 0.0899
A13: Строк кредиту | B13: Авансовий внесок (від вартості суми авто)
B14: від 20% | C14: від 30% | D14: від 40% | E14: від 50% | F14: від 60%
B15: Річна процентна ставка,%
A16: 12 міс. | D16: 0.0199 | E16: 0.0001 | F16: 0.0001
A17: 24 міс. | D17: 0.0799 | E17: 0.0499 | F17: 0.0299
A18: 36 міс. | D18: 0.1099 | E18: 0.0899 | F18: 0.0599
A19: 48 міс. | D19: 0.1199 | E19: 0.0999 | F19: 0.0799
A20: 60 міс. | D20: 0.1299 | E20: 0.1099 | F20: 0.0899
